[Event "FIDE Women World Blitz 2021"]
[Site "Warsaw"]
[Date "2021.12.29"]
[Round "5.2"]
[White "Muzychuk, Mariya"]
[Black "Goryachkina, Aleksandra"]
[Result "0-1"]
[ECO "B15"]
[WhiteElo "2536"]
[BlackElo "2604"]
[Annotator "ChessBase"]
[PlyCount "84"]
[EventDate "2021.12.29"]
[EventType "swiss"]
[EventCountry "POL"]
[Tiebreak "Cut1 Buchholz"]
[SourceTitle "playchess.com"]
[Source "ChessBase"]
[SourceQuality "1"]
[TimeControl "180+2"]

1. e4 {[%emt 0:00:00]} c6 {[%emt 0:00:02]} 2. d4 {[%emt 0:00:01]} d5 {[%emt 0:
00:00]} 3. Nc3 {[%emt 0:00:00]} dxe4 {[%emt 0:00:02]} 4. Nxe4 {[%emt 0:00:01]}
Nf6 {[%emt 0:00:01]} 5. Nxf6+ {[%emt 0:00:01]} exf6 {[%emt 0:00:02]} 6. c3 {
[%emt 0:00:01]} Bf5 {[%emt 0:00:02]} 7. Bd3 {[%emt 0:00:17]} Bxd3 {[%emt 0:00:
03]} 8. Qxd3 {[%emt 0:00:00]} Bd6 {[%emt 0:00:03]} 9. Nf3 {[%emt 0:00:08]} O-O
{[%emt 0:00:04]} 10. O-O {[%emt 0:00:03]} Nd7 {[%emt 0:00:03]} 11. h3 {[%emt 0:
00:06]} Re8 {[%emt 0:00:05]} 12. Bd2 {[%emt 0:00:03]} Nf8 {[%emt 0:00:02]} 13.
Rfe1 {[%emt 0:00:03]} Ne6 {[%emt 0:00:05]} 14. g3 {[%emt 0:00:07]} Qd7 {
[%emt 0:00:09]} 15. Kg2 {[%emt 0:00:01]} Bc7 {[%emt 0:00:15]} 16. Re2 {[%emt 0:
00:23]} Nc5 {[%emt 0:00:18]} 17. Rxe8+ {[%emt 0:00:25]} Rxe8 {[%emt 0:00:02]}
18. Qc4 {[%emt 0:00:22]} Ne4 {[%emt 0:00:04]} 19. Re1 {[%emt 0:00:01]} f5 {
[%emt 0:00:16]} 20. Qd3 {[%emt 0:00:12]} h6 {[%emt 0:00:06]} 21. b3 {[%emt 0:
00:03]} b5 {[%emt 0:00:10]} 22. c4 {[%emt 0:00:04]} a6 {[%emt 0:00:21]} 23. Rc1
{[%emt 0:00:07]} f4 {[%emt 0:00:33]} 24. Bxf4 {[%emt 0:00:10]} Bxf4 {[%emt 0:
00:06]} 25. gxf4 {[%emt 0:00:01]} Qxh3+ {[%emt 0:00:12]} 26. Kxh3 {[%emt 0:00:
03]} Nxf2+ {[%emt 0:00:00]} 27. Kg3 {[%emt 0:00:13]} Nxd3 {[%emt 0:00:02]} 28.
Rd1 {[%emt 0:00:11]} Re3 {[%emt 0:00:07]} 29. f5 {[%emt 0:00:17]} Kf8 {[%emt 0:
00:09]} 30. Kg2 {[%emt 0:00:22]} Ke8 {[%emt 0:00:09]} 31. Rd2 {[%emt 0:00:05]}
g5 {[%emt 0:00:08]} 32. fxg6 {[%emt 0:00:02]} fxg6 {[%emt 0:00:00]} 33. Nh4 {
[%emt 0:00:04]} Nf4+ {[%emt 0:00:15]} 34. Kf2 {[%emt 0:00:02]} Rh3 {[%emt 0:00:
04]} 35. Nf3 {[%emt 0:00:01]} g5 {[%emt 0:00:00]} 36. Rd1 {[%emt 0:00:05]} g4 {
[%emt 0:00:07]} 37. Re1+ {[%emt 0:00:00]} Kd8 {[%emt 0:00:02]} 38. Ne5 {
[%emt 0:00:01]} g3+ {[%emt 0:00:04]} 39. Kf3 {[%emt 0:00:02]} g2+ {[%emt 0:00:
03]} 40. Kxf4 {[%emt 0:00:10]} Rh1 {[%emt 0:00:01]} 41. Nxc6+ {[%emt 0:00:01]}
Kc7 {[%emt 0:00:03]} 42. Re7+ {[%emt 0:00:03]} Kxc6 {[%emt 0:00:00]} 0-1

[Event "FIDE Women World Blitz 2021"]
[Site "Warsaw"]
[Date "2021.12.29"]
[Round "5.3"]
[White "Gaponenko, Inna"]
[Black "Vaishali R"]
[Result "1-0"]
[ECO "C68"]
[WhiteElo "2339"]
[BlackElo "2405"]
[Annotator "NA"]
[PlyCount "119"]
[EventDate "2021.12.29"]
[EventType "swiss"]
[EventCountry "POL"]
[Tiebreak "Cut1 Buchholz"]
[SourceTitle "playchess.com"]
[Source "ChessBase"]
[SourceQuality "1"]
[TimeControl "180+2"]

1. e4 {[%emt 0:00:01]} e5 {[%emt 0:00:03]} 2. Nf3 {[%emt 0:00:02]} Nc6 {
[%emt 0:00:01]} 3. Bb5 {[%emt 0:00:01]} a6 {[%emt 0:00:01]} 4. Bxc6 {[%emt 0:
00:01]} dxc6 {[%emt 0:00:02]} 5. O-O {[%emt 0:00:02]} Bg4 {[%emt 0:00:01]} 6.
h3 {[%emt 0:00:01]} Bh5 {[%emt 0:00:01]} 7. g4 {[%emt 0:00:17]} Bg6 {[%emt 0:
00:02]} 8. Nxe5 {[%emt 0:00:01]} Bd6 {[%emt 0:00:02]} 9. Nxg6 {[%emt 0:00:16]}
hxg6 {[%emt 0:00:01]} 10. Qf3 {[%emt 0:00:01]} Qh4 {[%emt 0:00:13]} 11. d4 {
[%emt 0:01:04]} O-O-O {[%emt 0:00:53]} 12. e5 {[%emt 0:00:17]} Be7 {[%emt 0:00:
09]} 13. Be3 {[%emt 0:00:01]} Qxh3 {[%emt 0:01:12]} 14. Qxh3 {[%emt 0:00:01]}
Rxh3 {[%emt 0:00:02]} 15. Kg2 {[%emt 0:00:03]} Rh4 {[%emt 0:00:11]} 16. f3 {
[%emt 0:00:01]} f6 {[%emt 0:00:08]} 17. Nc3 {[%emt 0:00:08]} Nh6 {[%emt 0:00:
08]} 18. Bf2 {[%emt 0:00:13]} fxe5 {[%emt 0:00:15]} 19. Bxh4 {[%emt 0:00:14]}
Bxh4 {[%emt 0:00:02]} 20. dxe5 {[%emt 0:00:01]} Rd2+ {[%emt 0:00:01]} 21. Kh3 {
[%emt 0:00:05]} g5 {[%emt 0:00:04]} 22. Rac1 {[%emt 0:00:08]} Nf7 {[%emt 0:00:
03]} 23. f4 {[%emt 0:00:08]} gxf4 {[%emt 0:00:10]} 24. Rxf4 {[%emt 0:00:13]}
Nxe5 {[%emt 0:00:02]} 25. Kxh4 {[%emt 0:00:09]} Ng6+ {[%emt 0:00:01]} 26. Kg5 {
[%emt 0:00:01]} Nxf4 {[%emt 0:00:01]} 27. Kxf4 {[%emt 0:00:01]} b5 {[%emt 0:00:
01]} 28. Ne4 {[%emt 0:00:03]} Re2 {[%emt 0:00:01]} 29. Kf3 {[%emt 0:00:01]} Rh2
{[%emt 0:00:01]} 30. Nf2 {[%emt 0:00:01]} Kb7 {[%emt 0:00:01]} 31. Re1 {
[%emt 0:00:02]} Rh6 {[%emt 0:00:02]} 32. Re7 {[%emt 0:00:02]} Rf6+ {[%emt 0:00:
01]} 33. Ke3 {[%emt 0:00:01]} g6 {[%emt 0:00:01]} 34. Ne4 {[%emt 0:00:03]} Rf1
{[%emt 0:00:01]} 35. Re6 {[%emt 0:00:02]} Ra1 {[%emt 0:00:04]} 36. a3 {[%emt 0:
00:03]} Ra2 {[%emt 0:00:02]} 37. Rxg6 {[%emt 0:00:04]} Rxb2 {[%emt 0:00:01]}
38. Kd2 {[%emt 0:00:09]} Ra2 {[%emt 0:00:02]} 39. g5 {[%emt 0:00:03]} Rxa3 {
[%emt 0:00:01]} 40. Rf6 {[%emt 0:00:01]} Ra4 {[%emt 0:00:05]} 41. Kd3 {[%emt 0:
00:02]} Ra3+ {[%emt 0:00:02]} 42. Kd4 {[%emt 0:00:09]} Rh3 {[%emt 0:00:06]} 43.
g6 {[%emt 0:00:01]} Rh4 {[%emt 0:00:02]} 44. Ke5 {[%emt 0:00:03]} a5 {[%emt 0:
00:01]} 45. Kf5 {[%emt 0:00:03]} Rh5+ {[%emt 0:00:03]} 46. Ng5 {[%emt 0:00:01]}
Rh8 {[%emt 0:00:03]} 47. g7 {[%emt 0:00:02]} Rg8 {[%emt 0:00:02]} 48. Ne6 {
[%emt 0:00:02]} a4 {[%emt 0:00:02]} 49. Rf8 {[%emt 0:00:01]} Rxg7 {[%emt 0:00:
01]} 50. Nxg7 {[%emt 0:00:01]} Kb6 {[%emt 0:00:01]} 51. Ke4 {[%emt 0:00:01]}
Kc5 {[%emt 0:00:00]} 52. Kd3 {[%emt 0:00:01]} Kb4 {[%emt 0:00:01]} 53. Ne6 {
[%emt 0:00:04]} c5 {[%emt 0:00:01]} 54. c3+ {[%emt 0:00:03]} Ka3 {[%emt 0:00:
02]} 55. Nxc5 {[%emt 0:00:02]} c6 {[%emt 0:00:01]} 56. Rf2 {[%emt 0:00:03]} b4
{[%emt 0:00:01]} 57. cxb4 {[%emt 0:00:02]} Kxb4 {[%emt 0:00:01]} 58. Kd4 {
[%emt 0:00:03]} a3 {[%emt 0:00:01]} 59. Re2 {[%emt 0:00:02]} a2 {[%emt 0:00:01]
} 60. Rxa2 {[%emt 0:00:01]} 1-0

[Event "FIDE Women World Blitz 2021"]
[Site "Warsaw"]
[Date "2021.12.29"]
[Round "5.4"]
[White "Shuvalova, Polina"]
[Black "Semenova, Elena"]
[Result "1-0"]
[ECO "D02"]
[WhiteElo "2515"]
[BlackElo "2233"]
[Annotator "ChessBase"]
[PlyCount "121"]
[EventDate "2021.12.29"]
[EventType "swiss"]
[EventCountry "POL"]
[Tiebreak "Cut1 Buchholz"]
[SourceTitle "playchess.com"]
[Source "ChessBase"]
[SourceQuality "1"]
[TimeControl "180+2"]

1. Nf3 {[%emt 0:00:01]} d5 {[%emt 0:00:00]} 2. d4 {[%emt 0:00:03]} Nf6 {
[%emt 0:00:01]} 3. Bf4 {[%emt 0:00:01]} c5 {[%emt 0:00:03]} 4. e3 {[%emt 0:00:
02]} Nc6 {[%emt 0:00:01]} 5. Nbd2 {[%emt 0:00:02]} e6 {[%emt 0:00:08]} 6. c3 {
[%emt 0:00:02]} cxd4 {[%emt 0:00:10]} 7. exd4 {[%emt 0:00:01]} Nh5 {[%emt 0:00:
01]} 8. Be3 {[%emt 0:00:02]} g6 {[%emt 0:00:09]} 9. g3 {[%emt 0:00:09]} Bd6 {
[%emt 0:00:04]} 10. Be2 {[%emt 0:00:04]} O-O {[%emt 0:00:17]} 11. Nh4 {[%emt 0:
00:02]} Ng7 {[%emt 0:00:07]} 12. O-O {[%emt 0:00:03]} Re8 {[%emt 0:00:15]} 13.
Re1 {[%emt 0:00:05]} Nf5 {[%emt 0:00:08]} 14. Nxf5 {[%emt 0:00:05]} exf5 {
[%emt 0:00:01]} 15. Bf3 {[%emt 0:00:12]} Be6 {[%emt 0:00:10]} 16. Nb3 {[%emt 0:
00:03]} Rc8 {[%emt 0:00:18]} 17. Qd2 {[%emt 0:00:03]} h5 {[%emt 0:00:07]} 18.
h4 {[%emt 0:00:04]} Qc7 {[%emt 0:00:05]} 19. Kg2 {[%emt 0:00:03]} b6 {[%emt 0:
00:05]} 20. Re2 {[%emt 0:00:04]} f4 {[%emt 0:00:09]} 21. Bxf4 {[%emt 0:00:04]}
Bxf4 {[%emt 0:00:01]} 22. Qxf4 {[%emt 0:00:02]} Qxf4 {[%emt 0:00:01]} 23. gxf4
{[%emt 0:00:02]} Ne7 {[%emt 0:00:04]} 24. Rh1 {[%emt 0:00:10]} Kg7 {[%emt 0:00:
07]} 25. Re5 {[%emt 0:00:04]} Nf5 {[%emt 0:00:17]} 26. Nc1 {[%emt 0:00:08]} f6
{[%emt 0:00:07]} 27. Ree1 {[%emt 0:00:10]} Bf7 {[%emt 0:00:02]} 28. Rxe8 {
[%emt 0:00:07]} Rxe8 {[%emt 0:00:02]} 29. Nd3 {[%emt 0:00:01]} a5 {[%emt 0:00:
05]} 30. a4 {[%emt 0:00:04]} Kf8 {[%emt 0:00:02]} 31. Kh3 {[%emt 0:00:04]} Re7
{[%emt 0:00:04]} 32. Kg2 {[%emt 0:00:13]} Ke8 {[%emt 0:00:04]} 33. Kf1 {
[%emt 0:00:09]} Kd7 {[%emt 0:00:04]} 34. Bd1 {[%emt 0:00:19]} Kd6 {[%emt 0:00:
04]} 35. Ne1 {[%emt 0:00:06]} Re4 {[%emt 0:00:06]} 36. Ng2 {[%emt 0:00:04]} Re8
{[%emt 0:00:04]} 37. Bc2 {[%emt 0:00:01]} Be6 {[%emt 0:00:13]} 38. Ne3 {
[%emt 0:00:12]} Rg8 {[%emt 0:00:10]} 39. Bxf5 {[%emt 0:00:13]} Bxf5 {[%emt 0:
00:02]} 40. Rg1 {[%emt 0:00:05]} Bd7 {[%emt 0:00:05]} 41. b3 {[%emt 0:00:21]}
b5 {[%emt 0:00:00]} 42. axb5 {[%emt 0:00:02]} Bxb5+ {[%emt 0:00:01]} 43. Ke1 {
[%emt 0:00:00]} a4 {[%emt 0:00:03]} 44. bxa4 {[%emt 0:00:03]} Bxa4 {[%emt 0:00:
00]} 45. Kd2 {[%emt 0:00:01]} Bd7 {[%emt 0:00:07]} 46. Ra1 {[%emt 0:00:03]} Rb8
{[%emt 0:00:03]} 47. Ra6+ {[%emt 0:00:02]} Bc6 {[%emt 0:00:04]} 48. c4 {
[%emt 0:00:03]} dxc4 {[%emt 0:00:03]} 49. d5 {[%emt 0:00:02]} Rb2+ {[%emt 0:00:
05]} 50. Kc3 {[%emt 0:00:03]} Rxf2 {[%emt 0:00:02]} 51. Rxc6+ {[%emt 0:00:02]}
Ke7 {[%emt 0:00:03]} 52. Re6+ {[%emt 0:00:07]} Kf7 {[%emt 0:00:03]} 53. Re4 {
[%emt 0:00:06]} Rf3 {[%emt 0:00:06]} 54. Kxc4 {[%emt 0:00:00]} f5 {[%emt 0:00:
01]} 55. Re5 {[%emt 0:00:00]} Rxf4+ {[%emt 0:00:01]} 56. Kc5 {[%emt 0:00:02]}
Rxh4 {[%emt 0:00:03]} 57. d6 {[%emt 0:00:01]} Kf6 {[%emt 0:00:04]} 58. Re7 {
[%emt 0:00:04]} Rh1 {[%emt 0:00:02]} 59. Nd5+ {[%emt 0:00:01]} Kg5 {[%emt 0:00:
02]} 60. d7 {[%emt 0:00:01]} Rc1+ {[%emt 0:00:01]} 61. Kd6 {[%emt 0:00:01]} 1-0

[Event "FIDE Women World Blitz 2021"]
[Site "Warsaw"]
[Date "2021.12.29"]
[Round "5.4"]
[White "Kolaric, Spela"]
[Black "Rakhmangulova, Anastasiya"]
[Result "0-1"]
[ECO "B01"]
[WhiteElo "2178"]
[BlackElo "2174"]
[Annotator "RC"]
[PlyCount "91"]
[EventDate "2021.12.29"]
[EventType "swiss"]
[EventCountry "POL"]
[Tiebreak "Cut1 Buchholz"]
[SourceTitle "playchess.com"]
[Source "ChessBase"]
[SourceQuality "1"]
[TimeControl "180+2"]

1. e4 {[%emt 0:00:01]} d5 {[%emt 0:00:01]} 2. exd5 {[%emt 0:00:01]} Qxd5 {
[%emt 0:00:01]} 3. Nc3 {[%emt 0:00:02]} Qd6 {[%emt 0:00:00]} 4. d4 {[%emt 0:00:
02]} Nf6 {[%emt 0:00:01]} 5. Nf3 {[%emt 0:00:04]} a6 {[%emt 0:00:01]} 6. g3 {
[%emt 0:00:01]} Bg4 {[%emt 0:00:01]} 7. Bg2 {[%emt 0:00:02]} Nc6 {[%emt 0:00:
01]} 8. O-O {[%emt 0:00:27]} O-O-O {[%emt 0:00:02]} 9. Be3 {[%emt 0:00:09]} e5
{[%emt 0:00:39]} 10. dxe5 {[%emt 0:00:26]} Nxe5 {[%emt 0:00:02]} 11. Qxd6 {
[%emt 0:00:05]} Nxf3+ {[%emt 0:00:22]} 12. Bxf3 {[%emt 0:00:01]} Bxd6 {[%emt 0:
00:02]} 13. Bxg4+ {[%emt 0:00:07]} Nxg4 {[%emt 0:00:01]} 14. Rfe1 {[%emt 0:00:
20]} Bb4 {[%emt 0:00:08]} 15. h3 {[%emt 0:00:31]} Nxe3 {[%emt 0:00:03]} 16.
Rxe3 {[%emt 0:00:00]} Rd2 {[%emt 0:00:02]} 17. Rc1 {[%emt 0:00:04]} Rhd8 {
[%emt 0:00:09]} 18. Rf3 {[%emt 0:00:01]} f6 {[%emt 0:00:03]} 19. Kg2 {[%emt 0:
00:10]} Re8 {[%emt 0:00:04]} 20. a3 {[%emt 0:00:03]} Bxc3 {[%emt 0:00:07]} 21.
Rxc3 {[%emt 0:00:01]} Ree2 {[%emt 0:00:01]} 22. Rf3 {[%emt 0:00:10]} Rxc2 {
[%emt 0:00:03]} 23. Rxc2 {[%emt 0:00:01]} Rxc2 {[%emt 0:00:01]} 24. b4 {
[%emt 0:00:02]} b6 {[%emt 0:00:07]} 25. Rd3 {[%emt 0:00:04]} c5 {[%emt 0:00:42]
} 26. Rd6 {[%emt 0:00:15]} Kc7 {[%emt 0:00:01]} 27. bxc5 {[%emt 0:00:01]} Rxc5
{[%emt 0:00:04]} 28. Re6 {[%emt 0:00:00]} Ra5 {[%emt 0:00:25]} 29. Re7+ {
[%emt 0:00:02]} Kd6 {[%emt 0:00:01]} 30. Rxg7 {[%emt 0:00:01]} Rxa3 {[%emt 0:
00:01]} 31. Rxh7 b5 32. Rf7 {[%emt 0:00:07]} Ke6 {[%emt 0:00:01]} 33. Rb7 {
[%emt 0:00:02]} Rd3 {[%emt 0:00:08]} 34. h4 {[%emt 0:00:03]} Kf5 {[%emt 0:00:
20]} 35. Rb6 {[%emt 0:00:02]} Ra3 {[%emt 0:00:01]} 36. f3 {[%emt 0:00:07]} Ra4
{[%emt 0:00:01]} 37. g4+ {[%emt 0:00:03]} Kg6 {[%emt 0:00:00]} 38. Kg3 {
[%emt 0:00:04]} b4 {[%emt 0:00:01]} 39. h5+ {[%emt 0:00:03]} Kg7 {[%emt 0:00:
02]} 40. Rb7+ {[%emt 0:00:05]} Kg8 {[%emt 0:00:05]} 41. Rb6 {[%emt 0:00:18]} a5
{[%emt 0:00:04]} 42. Rxf6 {[%emt 0:00:02]} b3 43. Rb6 Rb4 {[%emt 0:00:02]} 44.
Rc6 {[%emt 0:00:09]} b2 {[%emt 0:00:01]} 45. h6 {[%emt 0:00:06]} b1=Q {[%emt 0:
00:03]} 46. Rc8+ {[%emt 0:00:02]} 0-1

[Event "FIDE Women World Blitz 2021"]
[Site "Warsaw"]
[Date "2021.12.29"]
[Round "5.5"]
[White "Kamalidenova, Meruert"]
[Black "Koneru, Humpy"]
[Result "0-1"]
[ECO "C70"]
[WhiteElo "2339"]
[BlackElo "2586"]
[Annotator "ChessBase"]
[PlyCount "64"]
[EventDate "2021.12.29"]
[EventType "swiss"]
[EventCountry "POL"]
[Tiebreak "Cut1 Buchholz"]
[SourceTitle "playchess.com"]
[Source "ChessBase"]
[SourceQuality "1"]
[TimeControl "180+2"]

1. e4 {[%emt 0:00:02]} e5 {[%emt 0:00:01]} 2. Nf3 {[%emt 0:00:01]} Nc6 {
[%emt 0:00:02]} 3. Bb5 {[%emt 0:00:01]} a6 {[%emt 0:00:01]} 4. Ba4 {[%emt 0:00:
02]} Bc5 {[%emt 0:00:02]} 5. O-O {[%emt 0:00:12]} d6 {[%emt 0:00:04]} 6. c3 {
[%emt 0:00:11]} Bd7 {[%emt 0:00:33]} 7. d4 {[%emt 0:00:12]} Ba7 {[%emt 0:00:01]
} 8. h3 {[%emt 0:00:14]} Nge7 {[%emt 0:00:07]} 9. Re1 {[%emt 0:00:10]} O-O {
[%emt 0:00:03]} 10. Be3 {[%emt 0:00:13]} f6 {[%emt 0:00:01]} 11. Nbd2 {[%emt 0:
00:10]} Kh8 {[%emt 0:00:05]} 12. Nf1 {[%emt 0:00:08]} Qe8 {[%emt 0:00:21]} 13.
Bc2 {[%emt 0:00:11]} Nd8 {[%emt 0:00:09]} 14. Ng3 {[%emt 0:00:05]} Ne6 {
[%emt 0:00:10]} 15. Qd2 {[%emt 0:00:08]} Ng6 {[%emt 0:00:18]} 16. Ne2 {[%emt 0:
00:32]} Rd8 {[%emt 0:00:18]} 17. Rad1 {[%emt 0:00:04]} Bc8 {[%emt 0:00:16]} 18.
h4 {[%emt 0:00:25]} c6 {[%emt 0:00:25]} 19. h5 {[%emt 0:00:09]} Ne7 {[%emt 0:
00:01]} 20. Ng3 {[%emt 0:00:03]} Ng8 {[%emt 0:00:20]} 21. Qe2 {[%emt 0:00:14]}
Nf4 {[%emt 0:00:03]} 22. Bxf4 {[%emt 0:00:04]} exf4 {[%emt 0:00:00]} 23. Nf5 {
[%emt 0:00:02]} Qxh5 {[%emt 0:00:04]} 24. Qd2 {[%emt 0:00:01]} g6 {[%emt 0:00:
06]} 25. N5h4 {[%emt 0:00:05]} Bg4 {[%emt 0:00:07]} 26. Bd3 {[%emt 0:00:08]}
Bb8 {[%emt 0:00:05]} 27. Be2 {[%emt 0:00:02]} d5 {[%emt 0:00:02]} 28. e5 {
[%emt 0:00:03]} Rde8 {[%emt 0:00:04]} 29. exf6 {[%emt 0:00:05]} g5 {[%emt 0:00:
04]} 30. Ne5 {[%emt 0:00:05]} Bxe5 {[%emt 0:00:02]} 31. Bxg4 Qxg4 {[%emt 0:00:
01]} 32. dxe5 gxh4 {[%emt 0:00:03]} 0-1

[Event "FIDE Women World Blitz 2021"]
[Site "Warsaw"]
[Date "2021.12.29"]
[Round "5.6"]
[White "Muzychuk, Anna"]
[Black "Buksa, Nataliya"]
[Result "1/2-1/2"]
[ECO "B31"]
[WhiteElo "2533"]
[BlackElo "2199"]
[Annotator "ChessBase"]
[PlyCount "68"]
[EventDate "2021.12.29"]
[EventType "swiss"]
[EventCountry "POL"]
[Tiebreak "Cut1 Buchholz"]
[SourceTitle "playchess.com"]
[Source "ChessBase"]
[SourceQuality "1"]
[TimeControl "180+2"]

1. e4 {[%emt 0:00:01]} c5 {[%emt 0:00:00]} 2. Nf3 {[%emt 0:00:01]} Nc6 {
[%emt 0:00:01]} 3. Bb5 {[%emt 0:00:04]} g6 {[%emt 0:00:01]} 4. O-O {[%emt 0:00:
06]} Bg7 {[%emt 0:00:01]} 5. c3 {[%emt 0:00:02]} Nf6 {[%emt 0:00:02]} 6. Re1 {
[%emt 0:00:03]} O-O {[%emt 0:00:02]} 7. h3 {[%emt 0:00:03]} Qb6 {[%emt 0:00:18]
} 8. a4 {[%emt 0:00:03]} a6 {[%emt 0:00:02]} 9. Bxc6 {[%emt 0:00:09]} Qxc6 {
[%emt 0:00:01]} 10. d4 {[%emt 0:00:30]} d5 {[%emt 0:00:01]} 11. exd5 {[%emt 0:
00:16]} Nxd5 {[%emt 0:00:04]} 12. c4 {[%emt 0:00:05]} Nb4 {[%emt 0:00:02]} 13.
d5 {[%emt 0:00:04]} Qc7 {[%emt 0:00:04]} 14. Nc3 {[%emt 0:00:16]} Bf5 {[%emt 0:
00:02]} 15. Nh4 {[%emt 0:00:02]} Bd3 {[%emt 0:00:12]} 16. Bg5 {[%emt 0:00:09]}
Rfe8 {[%emt 0:00:09]} 17. Qd2 {[%emt 0:00:17]} Bxc4 {[%emt 0:00:06]} 18. Re4 {
[%emt 0:00:01]} Bd3 {[%emt 0:00:20]} 19. Rxe7 {[%emt 0:00:09]} Rxe7 {[%emt 0:
00:03]} 20. Bxe7 {[%emt 0:00:03]} Qxe7 {[%emt 0:00:04]} 21. Nf3 {[%emt 0:00:00]
} Rd8 {[%emt 0:00:09]} 22. Re1 {[%emt 0:00:01]} Qc7 {[%emt 0:00:05]} 23. Qg5 {
[%emt 0:00:30]} h6 {[%emt 0:00:04]} 24. Qh4 {[%emt 0:00:05]} g5 {[%emt 0:00:14]
} 25. Qg4 {[%emt 0:00:07]} Qd7 {[%emt 0:00:05]} 26. Qg3 {[%emt 0:00:03]} Nxd5 {
[%emt 0:00:07]} 27. Ne4 {[%emt 0:00:04]} Bxe4 {[%emt 0:00:02]} 28. Rxe4 {
[%emt 0:00:00]} Nf4 {[%emt 0:00:06]} 29. Kh2 {[%emt 0:00:05]} Qd6 {[%emt 0:00:
01]} 30. h4 {[%emt 0:00:10]} Ne6 {[%emt 0:00:02]} 31. Ne5 {[%emt 0:00:10]} f6 {
[%emt 0:00:14]} 32. Nc4 {[%emt 0:00:11]} Qxg3+ {[%emt 0:00:02]} 33. Kxg3 {
[%emt 0:00:01]} gxh4+ {[%emt 0:00:03]} 34. Kh2 {[%emt 0:00:03]} Kf7 {[%emt 0:
00:11]} 1/2-1/2

[Event "FIDE Women World Blitz 2021"]
[Site "Warsaw"]
[Date "2021.12.29"]
[Round "5.6"]
[White "Bartel, Marta"]
[Black "Gil Quilez, Sonia"]
[Result "1-0"]
[ECO "D03"]
[WhiteElo "2192"]
[BlackElo "2122"]
[Annotator "RC"]
[PlyCount "57"]
[EventDate "2021.12.29"]
[EventType "swiss"]
[EventCountry "POL"]
[Tiebreak "Cut1 Buchholz"]
[SourceTitle "playchess.com"]
[Source "ChessBase"]
[SourceQuality "1"]
[TimeControl "180+2"]

1. d4 {[%emt 0:00:01]} d5 {[%emt 0:00:00]} 2. Nf3 {[%emt 0:00:02]} Nf6 {
[%emt 0:00:01]} 3. Bg5 {[%emt 0:00:01]} c6 {[%emt 0:00:08]} 4. e3 {[%emt 0:00:
03]} Nbd7 {[%emt 0:00:06]} 5. Be2 {[%emt 0:00:06]} Qb6 {[%emt 0:00:04]} 6. Qc1
{[%emt 0:00:04]} Ne4 {[%emt 0:00:02]} 7. Bh4 {[%emt 0:00:03]} e6 {[%emt 0:00:
07]} 8. O-O {[%emt 0:00:02]} Bd6 {[%emt 0:00:06]} 9. c4 {[%emt 0:00:04]} dxc4 {
[%emt 0:00:19]} 10. Bxc4 {[%emt 0:00:11]} Qc7 {[%emt 0:00:11]} 11. Nc3 {
[%emt 0:00:04]} Nef6 {[%emt 0:00:28]} 12. e4 {[%emt 0:00:16]} Bf4 {[%emt 0:00:
01]} 13. Qc2 {[%emt 0:00:05]} O-O {[%emt 0:00:35]} 14. e5 {[%emt 0:00:12]} Ne8
{[%emt 0:00:29]} 15. Be7 {[%emt 0:00:09]} Nb6 {[%emt 0:00:07]} 16. Bxf8 {
[%emt 0:00:09]} Nxc4 {[%emt 0:00:13]} 17. Ne2 {[%emt 0:00:41]} Bh6 {[%emt 0:00:
11]} 18. Bb4 {[%emt 0:00:30]} a5 {[%emt 0:00:04]} 19. Qxc4 {[%emt 0:00:06]}
axb4 {[%emt 0:00:01]} 20. Qxb4 {[%emt 0:00:02]} g6 {[%emt 0:00:04]} 21. Ng3 {
[%emt 0:00:03]} Bf8 {[%emt 0:00:03]} 22. Qc3 {[%emt 0:00:01]} Ng7 {[%emt 0:00:
02]} 23. Ne4 {[%emt 0:00:02]} Nf5 {[%emt 0:00:05]} 24. Nf6+ {[%emt 0:00:09]}
Kh8 {[%emt 0:00:02]} 25. Ng5 {[%emt 0:00:12]} h6 {[%emt 0:00:01]} 26. Nge4 {
[%emt 0:00:03]} Ra4 {[%emt 0:00:07]} 27. Rad1 {[%emt 0:00:03]} Rxa2 {[%emt 0:
00:08]} 28. Qh3 {[%emt 0:00:07]} Kg7 {[%emt 0:00:10]} 29. Ne8+ {[%emt 0:00:02]}
1-0